Cogmind - Beta 15 @@@ ROGUE MODE // 2025.10.12 @ 12:47:00 Player: shapeshifter Result: Destroyed by as-18506 with Assembled Maul Performance ------------- Evolutions (0) 0 Regions Visited (4) 800 Robots Destroyed (21) 105 Value Destroyed (257) 257 Prototype IDs (23) 460 Alien Tech Used (0) 0 Bonus (-88) -88 TOTAL SCORE: 1534 Bonus ------- Friendly Fire -88 Cogmind --------- Core Integrity 0/250 Matter 245/300 Energy 37/100 System Corruption 2% Temperature Warm (129) Movement Rolling (90) Location -9/Mines Parts ------- > --- POWER (1) -------- (None) > --- PROPULSION (2) --- Armored Wheel Armored Wheel > --- UTILITY (2) ------ Medium Storage Unit > --- WEAPON (2) ------- Beamcaster > --- INVENTORY (10) --- Gravmag System Combat Airjet Makeshift Terrain Scanner Makeshift Salvage Targeting Computer Launcher Guidance Computer Shock Absorption System Makeshift System Restoration Module Improved Trap Extractor (0/6) Latent Energy Streamer Peak State ------------ > --- POWER ------------ Ion Engine > --- PROPULSION ------- Armored Wheel Armored Wheel > --- UTILITY ---------- Medium Storage Unit > --- WEAPON ----------- Beamcaster Latent Energy Streamer > --- INVENTORY -------- Armored Wheel Gravmag System Combat Airjet Makeshift Terrain Scanner Makeshift Salvage Targeting Computer Launcher Guidance Computer Shock Absorption System Makeshift System Restoration Module Improved Trap Extractor [Rating: 24] Favorites ----------- Power Ion Engine Engine Ion Engine Propulsion Light Treads Treads Light Treads Wheel Armored Wheel Utility Light Armor Plating Device Seismic Detector Storage Medium Storage Unit Protection Light Armor Plating Weapon Medium Laser Energy Gun Medium Laser Energy Cannon Latent Energy Streamer Ballistic Gun Assault Rifle Launcher Grenade Launcher Build | -11 -10 -10 -10 -9 ------- Run | Yrd Mat Min Exi Min Slots Evolved . | . . . . . Power . | . . . . . Propulsion . | . . . . . Utility . | . . . . . Weapon . | . . . . . Parts Attached 22 | 7 . 4 5 6 Power 3 | 1 . 2 . . Engine 3 | 1 . 2 . . Core . | . . . . . Reactor . | . . . . . Propulsion 8 | 2 . 1 2 3 Treads 5 | 2 . 1 2 . Leg . | . . . . . Wheel 3 | . . . . 3 Hover . | . . . . . Flight . | . . . . . Utility 4 | 2 . 1 1 . Device 1 | 1 . . . . Storage 2 | 1 . . 1 . Processor . | . . . . . Hackware . | . . . . . Protection 1 | . . 1 . . Artifact . | . . . . . Weapon 7 | 2 . . 2 3 Energy Gun 3 | 1 . . 1 1 Energy Cannon 1 | . . . . 1 Ballistic Gun 1 | 1 . . . . Ballistic Cannon . | . . . . . Launcher 2 | . . . 1 1 Special Weapon . | . . . . . Impact Weapon . | . . . . . Slashing Weapon . | . . . . . Piercing Weapon . | . . . . . Special Melee Weapon . | . . . . . Unidentified Prototypes . | . . . . . Parts Lost 7 | . . 2 . 5 Power 2 | . . 1 . 1 Propulsion 1 | . . . . 1 Utility 2 | . . 1 . 1 Weapon 2 | . . . . 2 Highest Loss Streak 5 | . . 1 . 5 To Critical Strikes . | . . . . . Average Backups 7 | 4 6 6 8 9 Power . | 1 1 . . . Propulsion 2 | 1 2 2 2 2 Utility 3 | . 1 1 3 6 Weapon 1 | 1 1 2 2 1 Tool/Special . | . . . . . Unused Backups 15 | . . . 3 12 Power . | . . . . . Propulsion 5 | . . . 2 3 Utility 8 | . . . . 8 Weapon 2 | . . . 1 1 Tool/Special . | . . . . . Average Slot Usage (%) 99 | . 100 100 100 98 Engine 13 | . 14 14 14 13 Treads 25 | . 28 28 28 11 Wheel 2 | . . . . 16 Device 2 | . 14 2 . . Storage 14 | . 14 14 14 14 Protection 11 | . . 11 14 13 Energy Gun 14 | . 14 14 14 14 Ballistic Gun 9 | . 14 14 8 . Launcher 4 | . . . 5 13 Peak Build Rating 24 | 7 7 12 13 24 Average Rating 9 | 4 7 7 10 14 On Entrance 7 | . 7 7 8 13 Naked Turns . | . . . . . Heaviest Build 24 | 15 15 21 24 24 Greatest Support 40 | 40 40 40 40 40 Greatest Overweight (x) 1 | . . . . 1 Average Overweight (x) . | . . . . . Largest Inventory Capacity 10 | 8 8 8 10 10 Average Capacity 9 | 7 8 8 9 10 Most Carried 10 | 7 7 8 10 10 Average Carried 7 | 4 6 6 8 9 Final Capacity 10 | 8 8 8 10 10 Final Carried 10 | 5 7 6 10 9 Class Distribution -------------------- 61% | Mutant 29% | Commander-Mutant 8% | Scavenger-Mutant Dominant Class ---------------- Mutant | -10/Materials Mutant | -10/Mines Commander-Mutant | -10/Exiles Scavenger-Mutant | -9/Mines Resources | -11 -10 -10 -10 -9 ----------- Run | Yrd Mat Min Exi Min Matter Collected 604 | 281 88 80 95 60 Remotely . | . . . . . Salvage Created 891 | 142 314 50 196 189 Parts 50 | 9 20 3 10 8 Haulers Intercepted 1 | . 1 . . . Recyclers Shooed . | . . . . . Parts Field Recycled . | . . . . . Retrieved Matter . | . . . . . Parts Self-Destructed . | . . . . . Prevented . | . . . . . Kills | -11 -10 -10 -10 -9 ------- Run | Yrd Mat Min Exi Min Combat Hostiles Destroyed 21 | . 7 3 . 11 Guns 11 | . 7 3 . 1 AOE 10 | . . . . 10 Classes Destroyed 7 | 2 4 . . 1 Tunneler 3 | 2 . . . 1 Hauler 1 | . 1 . . . Recycler 1 | 1 . . . . Watcher 2 | . 2 . . . Swarmer 6 | . 3 3 . . Grunt 8 | . 4 . . 4 Assembled 11 | . . . . 11 Best Kill Streak 12 | 2 3 2 . 12 Combat Bots Only 11 | . 3 2 . 11 Max Kills in Single Turn 3 | 1 1 2 . 3 Gunslinging 1 | . . 1 . . Exploded 3 | . . . . 3 Melee . | . . . . . Uniques/NPCs Destroyed . | . . . . . Combat | -11 -10 -10 -10 -9 -------- Run | Yrd Mat Min Exi Min Hostile Shots Fired 103 | . 51 22 . 30 Missed 28 | . 16 3 . 9 Hits 75 | . 35 19 . 21 Melee 9 | . . . . 9 Projectile 66 | . 35 19 . 12 Damage Taken 1138 | . 362 262 . 514 Core 251 | . 107 54 . 90 Absorbed by Shields . | . . . . . Core Remaining (%) 100 | 100 . . . . Volleys Fired 85 | 7 34 7 15 22 Largest 2 | 2 2 2 2 2 Hottest 80 | 70 70 70 70 80 Shots Fired 142 | 14 67 14 24 23 Gun 133 | 14 67 14 24 14 Cannon 1 | . . . . 1 Launcher 8 | . . . . 8 Special . | . . . . . Kinetic 63 | 7 34 7 15 . Thermal 60 | 7 33 7 9 4 Explosive 8 | . . . . 8 Electromagnetic 11 | . . . . 11 Robot Hit Streak 10 | 3 10 3 9 3 Robot Miss Streak 4 | 3 4 4 1 3 Penetration Max . | . . . . . Secondary Targets 4 | . 3 1 . . Max Gunslinging Chain 1 | . 1 1 . . Shots Hit Robots 87 | 8 44 6 21 8 Core Hits 56 | 4 15 3 6 28 Critical Kills . | . . . . . Critical Parts Destroyed 1 | . . . 1 . Critical Strikes 4 | . 2 . 2 . Burn 3 | . 2 . 1 . Destroy 1 | . . . 1 . Melee Attacks . | . . . . . Impact . | . . . . . Slashing . | . . . . . Piercing . | . . . . . Sneak Attacks . | . . . . . Combat Hostiles . | . . . . . Follow-up Attacks . | . . . . . Damage Inflicted 2040 | 101 574 72 266 1027 Guns 1112 | 101 574 72 266 99 Cannons 8 | . . . . 8 Explosions 920 | . . . . 920 Melee . | . . . . . Ramming . | . . . . . Kinetic 572 | 63 298 47 164 . Thermal 461 | 38 276 25 102 20 Explosive 821 | . . . . 821 Electromagnetic 186 | . . . . 186 Impact . | . . . . . Slashing . | . . . . . Piercing . | . . . . . Highest Corruption 2 | . . . . 2 Average Corruption 1 | . . . . 1 Corruption Purged . | . . . . . Corruption Blocked . | . . . . . Overload Shots . | . . . . . Overflow Damage 9 | . . . . 9 Projectiles . | . . . . . Explosions 9 | . . . . 9 Melee . | . . . . . Knockbacks . | . . . . . Impact . | . . . . . Kinetic . | . . . . . Secondary . | . . . . . Self-Inflicted Damage 89 | . . . . 89 Shots 4 | . . . . 4 Rammed . | . . . . . Targets Rammed . | . . . . . Kicked . | . . . . . Crushed . | . . . . . Highest Temperature 162 | 18 162 27 162 129 Average Temperature 49 | 9 53 11 81 50 Received Heat Transfer 199 | . 150 . . 49 Siege Activations . | . . . . . Martial Activations . | . . . . . Shielding Activations . | . . . . . Robots Disrupted . | . . . . . Combat Hostiles . | . . . . . Robots Corrupted . | . . . . . Combat Hostiles . | . . . . . Parts Fried . | . . . . . Impact Corruptions . | . . . . . Robots Melted . | . . . . . Combat Hostiles . | . . . . . Parts Melted 3 | 1 1 1 . . Heat Transferred 1554 | 111 962 74 370 37 Parts Sabotaged . | . . . . . Parts Stolen . | . . . . . Parts Stripped . | . . . . . Power Chain Reactions 1 | . . . . 1 Latent Energy Used 58 | . . . . 58 LE Corruption 1 | . . . . 1 Alert | -11 -10 -10 -10 -9 ------- Run | Yrd Mat Min Exi Min Maximum Alert Level . | . . . . . Low Security (%) 100 | 100 100 100 . 100 Level 1 . | . . . . . Level 2 . | . . . . . Level 3 . | . . . . . Level 4 . | . . . . . Level 5 . | . . . . . High Security . | . . . . . Max Security . | . . . . . Peak Influence 127 | 5 127 65 . 43 Initial 45 | . . 45 . . Average 14 | . 35 15 . 2 Influence Increases 370 | 15 211 70 10 64 Destroy 0b10 Robot/C 200 | . 140 60 . . Destroy 0b10 Robot/NC 45 | 15 15 . 10 5 Destroy Leader 56 | . 46 10 . . Allied During Kill 1 | . . . . 1 Successful Hack 10 | . 10 . . . Destroy Structure 58 | . . . . 58 Influence Decreases 370 | 15 94 187 10 64 Entered New Map 72 | . . 72 . . Time Decay 244 | 15 94 105 10 20 Lost Part 24 | . . 10 . 14 Lost Ally 30 | . . . . 30 Squads Dispatched 3 | . 3 . . . Investigation . | . . . . . Extermination . | . . . . . Reinforcement 3 | . 3 . . . Assault . | . . . . . Garrison . | . . . . . Intercept . | . . . . . Searches Triggered . | . . . . . Construction Impeded . | . . . . . Haulers Reinforced . | . . . . . Active Scanning Responses . | . . . . . Cargo Convoy Interrupts . | . . . . . Stealth | -11 -10 -10 -10 -9 --------- Run | Yrd Mat Min Exi Min Distress Signals . | . . . . . Communications Jammed . | . . . . . Distress Signals . | . . . . . Times Spotted 32 | . 12 3 . 17 Peak Tracking Total 9 | . 3 2 . 9 Tactical Retreats . | . . . . . Traps | -11 -10 -10 -10 -9 ------- Run | Yrd Mat Min Exi Min Traps Triggered 1 | . . 1 . . Indirectly . | . . . . . Trap Hack Attempts . | . . . . . Triggered . | . . . . . Disarmed . | . . . . . Reprogrammed . | . . . . . Reused . | . . . . . Traps Extracted . | . . . . . Installed . | . . . . . Triggered . | . . . . . Machines | -11 -10 -10 -10 -9 ---------- Run | Yrd Mat Min Exi Min Machines Disabled . | . . . . . Max in Single Turn . | . . . . . Machines Repaired . | . . . . . Machines Dismantled . | . . . . . Machines Sabotaged . | . . . . . Overloaded Fab Kills . | . . . . . Hacking | -11 -10 -10 -10 -9 --------- Run | Yrd Mat Min Exi Min Machines Accessed 4 | . 1 1 2 . Terminals 1 | . 1 . . . Fabricators . | . . . . . Repair Stations . | . . . . . Recycling Units . | . . . . . Scanalyzers . | . . . . . Garrison Access . | . . . . . Total Hacks 9 | . 6 1 2 . Successful 6 | . 3 1 2 . Failed 3 | . 3 . . . Catastrophic . | . . . . . Database Lockouts . | . . . . . Manual 7 | . 6 . 1 . Terminals 6 | . 6 . . . Fabricators . | . . . . . Repair Stations . | . . . . . Recycling Units . | . . . . . Scanalyzers . | . . . . . Garrison Access . | . . . . . Terminal Hacks 4 | . 1 1 2 . Record 1 | . . . 1 . Open Door 1 | . . 1 . . Zone Layout 1 | . 1 . . . Proto ID Catalog 1 | . . . 1 . Fabricator Hacks . | . . . . . Repair Station Hacks . | . . . . . Recycling Unit Hacks . | . . . . . Scanalyzer . | . . . . . Garrison Access Hacks . | . . . . . Unauthorized Hacks 2 | . 2 . . . Terminals 2 | . 2 . . . Botnet 1 | . 1 . . . Skim 1 | . 1 . . . Fabricators . | . . . . . Repair Stations . | . . . . . Recycling Units . | . . . . . Scanalyzers . | . . . . . Garrison Access . | . . . . . Data Cores Recovered . | . . . . . Used . | . . . . . Hacking Detections 1 | . 1 . . . Full Trace Events . | . . . . . Feedback Events . | . . . . . Feedback Blocked . | . . . . . Robot Schematics Acquired . | . . . . . Robots Built . | . . . . . Authchips . | . . . . . Time . | . . . . . Total Robot Build Rating . | . . . . . Part Schematics Acquired . | . . . . . Parts Built . | . . . . . Authchips . | . . . . . Time . | . . . . . Total Part Build Rating . | . . . . . Parts Repaired . | . . . . . Time . | . . . . . Parts Recycled . | . . . . . Recycled Matter . | . . . . . Retrieved Matter . | . . . . . Retrieved Components . | . . . . . Parts Scanalyzed . | . . . . . Part Schematics Acquired . | . . . . . Parts Damaged . | . . . . . Bothacking | -11 -10 -10 -10 -9 ------------ Run | Yrd Mat Min Exi Min Used RIF Installer . | . . . . . Robots Hacked . | . . . . . Non-combat . | . . . . . Combat . | . . . . . Robot Hacks Applied . | . . . . . Relay Couplers Released . | . . . . . Fabnet Peak Effective % . | . . . . . Robots Rewired 4 | . . . 4 . Allies Hacked . | . . . . . Hacks Repelled . | . . . . . Allies | -11 -10 -10 -10 -9 -------- Run | Yrd Mat Min Exi Min Total Allies 7 | . . . 4 3 Largest Group 6 | . . . 4 6 Highest-Rated Group 81 | . . . 32 81 Highest-Rated Ally 31 | . . . 8 31 Total Orders . | . . . . . Ally Attacks 15 | . . . . 15 Total Damage 198 | . . . . 198 Kills 4 | . . . . 4 Allies Corrupted . | . . . . . Allies Melted . | . . . . . Intel | -11 -10 -10 -10 -9 ------- Run | Yrd Mat Min Exi Min Active Infowar (turns) 365 | 1 280 84 . . Seismic 365 | 1 280 84 . . Robot Analysis Total . | . . . . . Derelict Logs Recovered 2 | . . 1 . 1 Drone Launches . | . . . . . Drone Recoveries . | . . . . . Exploration | -11 -10 -10 -10 -9 ------------- Run | Yrd Mat Min Exi Min Turns Passed 2181 | 186 280 455 942 318 Spaces Moved 1230 | 102 111 265 523 229 Core 15 | 15 . . . . Treads 1059 | 87 111 265 523 73 Legs . | . . . . . Wheels 156 | . . . . 156 Hover . | . . . . . Flight . | . . . . . Fastest Speed 50 | 50 160 160 160 90 Average Speed 149 | 143 160 160 160 112 Slowest Speed 160 | 160 160 160 160 160 Overloaded Moves . | . . . . . Propulsion Burnouts . | . . . . . Robots Hopped . | . . . . . Potential Cave-ins . | . . . . . Cave-ins Triggered . | . . . . . Exploration Rate (%) 45 | 6 21 59 87 54 Regions Visited 4 Branch Regions 3 Pre-discovered Areas 2 | . . 1 1 . Known Exits Taken . | . . . . . Unknown Exits Taken 4 | 1 1 1 1 . Scrap Searched 1 | . . 1 . . Spaces Dug 19 | . . . . 19 Terrain Destroyed 90 | . . . . 90 Melee . | . . . . . Projectile 2 | . . . . 2 AOE 88 | . . . . 88 Terrain Rammed . | . . . . . Walls Destroyed . | . . . . . Machines Disabled . | . . . . . Actions | -11 -10 -10 -10 -9 --------- Run | Yrd Mat Min Exi Min Total 1433 | 127 147 282 606 271 Wait 3 | . 1 2 . . Move 1226 | 101 110 264 522 229 Hop . | . . . . . Pick Up 34 | 12 2 3 12 5 Fast Attach 4 | . . . . 4 Attach 12 | 7 . 2 1 2 Detach 1 | . . . . 1 Swap 6 | . . 2 4 . Drop 18 | . . 2 8 8 Fire 85 | 7 34 7 15 22 Melee . | . . . . . Ram . | . . . . . Kick . | . . . . . Crush . | . . . . . Escape Stasis . | . . . . . Rewire 44 | . . . 44 . Trap . | . . . . . Miscellaneous . | . . . . . Route ------- -11/Scrapyard -10/Materials (discovered 2 exits: [*Mat] / *Min) -10/Mines -10/Exiles -9/Mines History --------- Turn | Location | Event 6 | -11/Scrapyard | Discovered new exit (range 16) 187 | -11/Scrapyard | Entered Materials 302 | -10/Materials | Build established: Mutant 305 | -10/Materials | Discovered new exit (range 12) 364 | -10/Materials | Discovered new exit (range 10) 467 | -10/Materials | Entered Mines 468 | -10/Mines | Learned location of Storage (-9) 553 | -10/Mines | Core integrity fell below 50% 756 | -10/Mines | Met a Derelict who couldn't figure out how to use a Trap Extractor 829 | -10/Mines | Deemed a non-threat by the Exiles lab entrance 829 | -10/Mines | Discovered new exit (range 5) 922 | -10/Mines | Entered Exiles 922 | -10/Exiles | Found Exiles lab destroyed 1283 | -10/Exiles | Learned location of Zion (-6) 1632 | -10/Exiles | Build established: Commander-Mutant 1691 | -10/Exiles | Opened EX-Vault 1699 | -10/Exiles | Found Latent Energy Streamer 1840 | -10/Exiles | Discovered new exit (range 10) 1864 | -10/Exiles | Entered Mines 1864 | -9/Mines | Accompanied by 4 allies 1889 | -9/Mines | Assembled infested the area 1894 | -9/Mines | Assisted by a Guerilla fighting off Assembled 2038 | -9/Mines | Received a Mining Laser from a helpful Derelict 2137 | -9/Mines | Core integrity fell below 20% 2150 | -9/Mines | Learned Materials emergency access door positions 2182 | -9/Mines | Destroyed by as-18506 with Assembled Maul Last Messages --------------- 02167_ Knocked back. 02169_ U-05 Engineer lays Concrete. 02170_ Acquired Beamcaster. 02170_ U-05 Engineer lays Concrete. 02172_ Shock Rifle destroyed. 02172_ Lgt. Armor Plating destroyed. 02173_ U-05 Engineer builds a Wall. 02174_ The unstable cave ceiling collapses. 02174_ U-05 Engineer lays Concrete. 02174_ Arm. Wheel destroyed. 02174_ as-28230 destroyed. 02174_ Chain reaction triggered in Corrupted Lgt. Ion Engine. 02174_ as-94590 destroyed. 02175_ U-05 Engineer builds a Wall. 02177_ U-05 Engineer lays Concrete. 02179_ Ion Engine destroyed. 02180_ U-05 Engineer builds a Wall. 02180_ U-05 Engineer lays Concrete. 02181_ The unstable cave ceiling collapses. 02182_ U-05 Engineer lays Concrete. Map ----- +----------------------------------------------------+ | ### ##?# ### ##?????# #??# | | #?## """ ##??# ## #?????## ##??# | | ???# """ #???# # #????## ###???# | | ???## """ #??## == ##????# ##?????## | | ????### ##?## ! ###?????# ##??????### | | ??????## ##??# =%##???????## #????????## | | ???????#### ##???# ]% #?????????# #????????## | | ??????????# #????## !%#?????????## #######??# | | ??????????# ####??## ! %#??????????# #### | | ??????????# #???## /##??????????## ## | | ??????????#### #????## #???#????????### | | ?????????????# ####### #??# ?????????## | | ?????????????# ## #?? ???????#### | | ?????????????# ## ######?# ?????????## | | ?????????????# ## #????## ??????????### # | | ?????????????# #????# ?????????????##### | | ?????????????#### #????# ??????????????????? | | ????????????????# #????# ??????????????????? | | ??? ????????????# #????# ???????????????????? | | ???? ???????????# #????# ????????????????????? | | ???# ?????###??#=#????# #????????????????????? | | ??#? ???## ###%##???# ?????????????????????? | | ?## ? ### ## *[###??# ??????????????????????? | | ?# ?? ^%=% %= ##?# #??????????????????????? | | ?# #?#!# # =% ### #??????????????????????? | | ?# # # !## @###????????????????????? | | ???? # # = a%a #????????????????????? | | ???????#^ # % #??????????????????? | | ???????# ^ ^ !%= # #??????????????????? | | ???????#### # #!#!% %*! *!=????????????????? | | ??????????## ####### % ####???????????????? | | ???????????## #???? ! ##??????????????????? | | ????????????## #??# ##???????????????????? | | ?????????????## #??# == #????????????????????? | | ???????????????###?? #????????????????????? | | ???????????????????? # #????????????????????? | | ???????????????????# #u #????????????????????? | | ???????????????????# #u ##????????????????????? | | ???????????????????## #= #?????????????????????? | | ????????????????????!=%%!%=*?????????????????????? | | ????????????????????###=%###?????????????????????? | | ??????????????????????#!|#???????????????????????? | | ???????????????????????%%????????????????????????? | | ?????????????????????????????????????????????????? | | ?????????????????????????????????????????????????? | | ?????????????????????????????????????????????????? | | ?????????????????????????????????????????????????? | | ?????????????????????????????????????????????????? | | ?????????????????????????????????????????????????? | | ?????????????????????????????????????????????????? | +----------------------------------------------------+ Best States ------------- Heat Dissipation 25 Energy Generation 18 Energy Capacity 250 Matter Stores 300 Matter Capacity 300 Sight Range 16 Terrain Scan Density 10 Armor Coverage 150 Evasion (%) 50 Recoil Reduction 2 Item Schematics ----------------- None Robot Schematics ------------------ None Fabricated ------------ Nothing Repaired ---------- Nothing Alien Tech Used ----------------- None Achievements -------------- None Challenges ------------ None Game ------ Seed ArchitectThrusterInsulator Manual? 0 Play Time 00:11:36 Cumulative 372.9 hours Start 2025.10.12 @ 12:37:14 End 2025.10.12 @ 12:47:00 Sessions 3 Manual Loads 0 Difficulty Rogue Special Mode None Game No. 491 Rogue 491 Adventurer 0 Explorer 0 Win Type - Total 11 Types 6/0/1/2/1/0/1/0/0/0 Lore% 87 Gallery% 83 Achievement% 70 Wizard Run 0 Options --------- Layout 0 ASCII 0 Keyboard 0 Movement Mouse Keybinds 0 Fullscreen 1 Font 24/Tamsyn Map View 76x50 Zoom Use 0% Tactical HUD 1 Map Filters NONE Filters NONE Steam 1 RUN: c8b41732-0c78-4695-b739-521b7f692f75